bitfinex/quotes_ETHUSD_20240916
["timestamp","ask_amount","ask_price","bid_price","bid_amount"]
[1726453303542,0.45840902,2281.9,2281.8,16.1215]
[1726453303857,7.43589728,2282.5,2282.2,4.38157]
[1726453303858,7.3678669,2282.5,2282.2,4.38157]
[1726453304076,2.3051,2282.7,2282.3,4.3815]
[1726453304275,2.37313038,2282.7,2282.3,4.3815]
[1726453304583,0.45831845,2282.4,2282.3,4.3815]
[1726453305373,0.45831845,2282.4,2282.3,6.6894]
[1726453305584,0.45831845,2282.4,2282.3,11.62094]
[1726453305908,0.45831845,2282.4,2282.3,20.164574]
[1726453306056,7.3678669,2283.0,2282.8,4.38045]
[1726453306400,0.06803038,2283.2,2282.8,4.38045]
[1726453306610,0.45832912,2283.0,2282.9,4.38036]
[1726453306909,0.45832912,2283.0,2282.9,8.76075]
[1726453307671,0.45832912,2283.0,2282.9,9.31075]
[1726453307906,7.3678669,2283.5,2283.1,4.37992]
[1726453308204,0.45831744,2283.3,2283.2,4.37977]
[1726453308773,0.45831744,2283.3,2283.1,8.75989]
[1726453309298,0.45831744,2283.3,2283.1,8.75978]
[1726453309470,0.45831744,2283.3,2283.2,4.37981]
[1726453310001,0.45831744,2283.3,2283.1,4.37988]
[1726453311160,0.45831744,2283.3,2282.9,4.38027]
[1726453311575,0.13113463,2283.2,2283.1,4.38]
[1726453311980,0.45831744,2283.3,2283.2,9.30962]
[1726453313811,0.45831744,2283.3,2283.2,4.92981]
[1726453314312,0.45831744,2283.3,2283.2,4.37981]
[1726453314467,0.45831744,2283.3,2283.0,0.55]
[1726453314881,0.45831744,2283.3,2283.1,4.37999]
[1726453315268,0.45831744,2283.3,2282.9,4.38026]
[1726453315469,0.52634782,2283.3,2283.1,4.37998]
[1726453315794,0.45831744,2283.3,2283.1,4.37998]
[1726453315997,0.45831744,2283.3,2283.0,4.38005]
[1726453316889,0.45831744,2283.3,2282.9,4.38038]
[1726453317774,0.45831744,2283.3,2282.6,7.38082]
[1726453317775,2.2979,2283.2,2282.6,7.38082]
[1726453318088,2.36593038,2283.2,2282.8,4.38047]
[1726453318402,0.45831744,2283.3,2282.8,4.38047]
[1726453318403,0.45831744,2283.3,2283.0,4.38008]
[1726453318718,0.45831744,2283.3,2282.8,5.118597]
[1726453318867,0.45831744,2283.3,2283.2,4.37981]
[1726453319071,0.45831744,2283.3,2283.2,9.30962]
[1726453319496,2.4378022,2283.7,2283.3,4.37947]
[1726453319691,2.4378022,2283.7,2283.2,4.92981]
[1726453319692,0.45826086,2283.6,2283.4,4.3794]
[1726453320621,0.45826086,2283.6,2283.2,4.37966]
[1726453320821,0.06803038,2283.5,2283.0,4.38008]
[1726453322022,0.06803038,2283.5,2283.1,4.37987]
[1726453322170,0.06803038,2283.5,2283.2,4.37979]
[1726453322719,0.06803038,2283.5,2283.1,4.38]
[1726453323490,0.45826086,2283.6,2283.2,4.37972]
[1726453323691,0.45826086,2283.6,2283.2,5.7605598]
[1726453323916,0.45826086,2283.6,2283.2,5.7605398]
[1726453324238,0.45826086,2283.6,2283.2,5.7605298]
[1726453324447,0.45826086,2283.6,2283.3,4.37958]
[1726453324608,4.44746038,2283.5,2283.0,4.38005]
[1726453324802,0.06803038,2283.5,2282.8,4.38044]
[1726453325157,4.37974,2283.3,2282.8,8.76091]
[1726453325448,0.06803038,2283.2,2282.8,4.38044]
[1726453325612,0.06803038,2283.2,2282.8,8.76091]
[1726453325823,0.45826086,2283.6,2283.1,4.37986]
[1726453326016,0.45826086,2283.6,2283.3,4.37961]
[1726453326349,0.13212351,2283.5,2283.3,4.37961]
[1726453327003,0.13212351,2283.5,2283.4,4.37943]
[1726453327213,0.13212351,2283.5,2283.4,8.75886]
[1726453328130,0.13212351,2283.5,2283.3,4.37949]
[1726453328951,0.13212351,2283.5,2283.2,3.55]
[1726453329114,0.13212351,2283.5,2283.4,4.37943]
[1726453330821,0.45828162,2283.5,2283.4,4.37943]
[1726453331021,0.59053634,2283.5,2283.4,4.37943]
[1726453332248,0.59053634,2283.5,2283.2,4.536975]
[1726453332249,0.59053634,2283.5,2283.1,4.37989]
[1726453332415,0.59053634,2283.5,2283.2,4.37977]
[1726453333418,0.59053634,2283.5,2283.3,4.37949]
[1726453333620,0.59053634,2283.5,2283.4,4.37943]
[1726453333836,0.59053634,2283.5,2283.4,16.10457456]
[1726453334016,0.59053634,2283.5,2283.4,19.10457456]
[1726453334523,0.0286022,2283.7,2283.6,12.3081]
[1726453337658,0.0286022,2283.7,2283.6,4.92905]
[1726453337827,0.0286022,2283.7,2283.6,6.092754]
[1726453338761,0.0286022,2283.7,2283.6,10.471804]
[1726453339352,0.0286022,2283.7,2283.6,12.828504]
[1726453339965,0.0286022,2283.7,2283.6,17.207554]
[1726453340174,0.0286022,2283.7,2283.6,12.828504]
[1726453341386,0.0286022,2283.7,2283.6,20.207554]
[1726453341692,7.3678669,2284.3,2284.2,4.3779]
[1726453341863,0.0407808,2284.5,2284.2,4.3779]
[1726453342064,0.12384339,2284.3,2284.2,4.3779]
[1726453342277,0.0407808,2284.5,2284.2,4.3779]
[1726453342484,0.12384339,2284.3,2284.2,4.3779]
[1726453342678,0.0407808,2284.5,2284.2,4.3779]
[1726453342883,0.12384339,2284.3,2284.2,4.3779]
[1726453343083,4.48622118,2284.5,2284.0,4.37812]
[1726453343264,0.12384339,2284.3,2283.9,4.37835]
[1726453343603,0.06803038,2284.3,2283.9,4.37835]
[1726453343771,0.06803038,2284.3,2283.8,5.72550994]
[1726453343772,0.12384339,2284.2,2283.8,5.72550994]
[1726453343955,0.12384339,2284.2,2283.9,4.37838]
[1726453344307,0.0407808,2284.5,2284.2,4.37789]
[1726453344603,0.0407808,2284.5,2284.0,4.3781]
[1726453344795,0.0407808,2284.5,2284.1,4.37806]
[1726453346470,0.0407808,2284.5,2284.3,4.37769]
[1726453346872,0.10881118,2284.5,2284.2,4.37789]
[1726453347079,0.10881118,2284.5,2284.1,4.37797]
[1726453347394,0.10881118,2284.5,2284.1,9.443397]
[1726453347780,0.0407808,2284.5,2284.1,5.065417]
[1726453347966,0.10881118,2284.5,2284.1,5.065347]
[1726453348175,0.10881118,2284.5,2284.2,0.7561847]
[1726453348856,0.10881118,2284.5,2284.1,4.3779]
[1726453349566,0.10881118,2284.5,2284.1,8.75588]
[1726453349767,0.0407808,2284.5,2284.2,4.37786]
[1726453350167,0.49901016,2284.5,2284.3,4.37761]
[1726453350384,0.49901016,2284.5,2284.3,4.37759]
[1726453351587,0.49901016,2284.5,2284.3,4.37755]
[1726453352975,4.37773,2284.3,2283.8,4.37858]
[1726453353166,2.34553038,2284.2,2283.9,4.37846]
[1726453353578,6.72352038,2284.2,2283.8,0.676351]
[1726453353860,6.72352038,2284.2,2283.6,4.37885]
[1726453353861,11.10152038,2284.2,2283.6,4.37885]
[1726453354073,11.10152038,2284.2,2283.3,6.69598]
[1726453354074,6.72352038,2284.2,2283.7,8.75759]
[1726453354288,6.72352038,2284.2,2283.7,4.37875]
[1726453355560,2.34553038,2284.2,2283.9,4.37845]
[1726453355766,2.2775,2284.2,2283.9,4.37845]
[1726453356307,0.12439553,2284.1,2283.9,8.75681]
[1726453356460,0.12439553,2284.1,2284.0,4.92828]
[1726453356668,2.84771016,2284.5,2284.1,4.37801]
[1726453356868,2.84771016,2284.5,2284.2,4.37778]
[1726453358317,2.84771016,2284.5,2284.1,4.37801]
[1726453358318,2.84673296,2284.5,2284.1,4.37801]
[1726453358473,2.84673296,2284.5,2284.1,8.75601]
[1726453358667,2.84673296,2284.5,2284.1,4.378]
[1726453359412,2.84673296,2284.5,2284.1,8.75598]
[1726453359572,2.84673296,2284.5,2284.1,9.796728]
[1726453359769,2.84673296,2284.5,2284.1,5.418728]
[1726453360004,2.84673296,2284.5,2284.1,9.796718]
[1726453360387,2.84673296,2284.5,2284.1,5.418728]
[1726453360610,2.84673296,2284.5,2284.1,9.796708]
[1726453360797,2.84673296,2284.5,2284.1,5.418728]
[1726453360997,2.84673296,2284.5,2284.1,9.796708]
[1726453362098,2.84673296,2284.5,2284.2,4.37787]
[1726453362296,2.84673296,2284.5,2284.1,5.418728]
[1726453362503,2.84673296,2284.5,2284.1,8.75598]
[1726453363217,2.84673296,2284.5,2284.1,4.37798]
[1726453363421,2.84673296,2284.5,2283.9,5.47987]
[1726453363740,0.06803038,2284.4,2284.0,4.37823]
[1726453364222,0.10783398,2284.4,2284.0,4.37823]
[1726453364523,4.37806,2284.2,2283.7,4.37875]
[1726453364722,0.06803038,2284.1,2283.7,4.37875]
[1726453364892,4.44609038,2284.2,2283.8,4.37861]
[1726453365392,0.06803038,2284.2,2283.8,4.37861]
[1726453365587,0.06803038,2284.2,2283.9,4.37846]
[1726453365783,2.4599,2284.3,2283.9,4.88781167]
[1726453366014,2.4599,2284.3,2283.9,9.26618167]
[1726453366291,2.4599,2284.3,2283.9,9.26617167]
[1726453366489,2.4599,2284.3,2284.1,4.37807]
[1726453366726,0.0398036,2284.4,2284.1,4.37807]
[1726453367733,4.4173136,2284.4,2283.9,7.32720167]
[1726453368030,4.4173136,2284.4,2283.8,4.37866]
[1726453368031,2.4571,2284.2,2283.8,4.37866]
[1726453368499,2.4571,2284.2,2283.9,4.37846]
[1726453368919,2.4571,2284.2,2283.9,4.37837]
[1726453369586,0.06803038,2284.3,2284.0,4.37827]
[1726453369789,6.94884398,2284.4,2283.9,5.32566167]
[1726453370031,2.57123398,2284.4,2284.0,4.37826]
[1726453370243,6.94874398,2284.4,2283.9,4.37837]
[1726453370538,6.94874398,2284.4,2283.9,4.37834]
[1726453371002,2.57123398,2284.4,2283.9,4.37834]
[1726453371197,2.57123398,2284.4,2284.0,4.37826]
[1726453371401,0.12447437,2284.3,2284.0,4.37826]
[1726453371599,0.12447437,2284.3,2283.9,4.37834]
[1726453372298,0.12447437,2284.3,2284.0,4.37818]
[1726453372740,0.12447437,2284.3,2284.1,4.37809]
[1726453373118,0.12447437,2284.3,2284.2,4.3779]
[1726453373316,0.12447437,2284.3,2284.0,4.92809]
[1726453373630,0.12447437,2284.3,2284.1,0.56738]
[1726453374007,0.12447437,2284.3,2284.1,4.94543]
[1726453374639,0.12447437,2284.3,2284.1,0.56738]
[1726453374844,0.12447437,2284.3,2284.0,4.92826]
[1726453375345,0.12447437,2284.3,2284.1,4.37806]
[1726453376661,0.12447437,2284.3,2284.2,4.3779]
[1726453377319,0.12447437,2284.3,2284.1,4.37807]
[1726453377505,0.12447437,2284.3,2284.0,4.92814]
[1726453377708,0.12447437,2284.3,2284.0,9.873695]
[1726453378017,0.12447437,2284.3,2284.1,4.37808]
[1726453378356,0.12447437,2284.3,2284.2,11.6529]
[1726453378955,0.12447437,2284.3,2284.2,7.275]
[1726453379141,0.12447437,2284.3,2284.2,8.4970355]
[1726453379809,0.12447437,2284.3,2284.2,6.1499355]
[1726453381537,0.12447437,2284.3,2284.2,10.5278355]
[1726453382308,0.12447437,2284.3,2284.2,6.1499355]
[1726453382751,0.12447437,2284.3,2284.2,1.7720355]
[1726453382934,0.12447437,2284.3,2284.2,6.1499355]
[1726453383136,0.12447437,2284.3,2284.2,10.5278355]
[1726453383938,0.12447437,2284.3,2284.2,6.1499355]
[1726453384149,0.12447437,2284.3,2284.2,10.5278355]
[1726453384353,0.12447437,2284.3,2284.2,13.0191355]
[1726453384922,0.12447437,2284.3,2284.2,5.5999355]
[1726453385125,0.12447437,2284.3,2284.1,4.37809]
[1726453385336,0.12447437,2284.3,2284.1,4.37799]
[1726453385564,0.12447437,2284.3,2284.2,4.3779]
[1726453386358,0.12447437,2284.3,2284.2,9.3058]
[1726453387039,0.12447437,2284.3,2284.2,4.9279]
[1726453387237,0.12447437,2284.3,2284.2,5.858486]
[1726453387866,0.12447437,2284.3,2284.2,0.930586]
[1726453388172,2.3455,2284.2,2283.9,4.3784]
[1726453388479,2.3455,2284.2,2283.8,5.01200384]
[1726453388762,0.12079825,2284.1,2283.9,4.37842]
[1726453389073,0.12079825,2284.1,2283.8,0.63348384]
[1726453389241,0.12079825,2284.1,2283.8,5.01202384]
[1726453389630,0.12299815,2284.1,2283.8,5.01202384]
[1726453390363,0.12299815,2284.1,2283.9,4.37847]
[1726453390570,0.12299815,2284.1,2284.0,4.37828]
[1726453390865,0.12299815,2284.1,2283.9,4.37837]
[1726453391455,0.12299815,2284.1,2284.0,9.39412268]
[1726453391678,0.12299815,2284.1,2284.0,9.30656]
[1726453392190,0.12299815,2284.1,2283.9,4.67915838]
[1726453392793,0.12299815,2284.1,2283.9,4.37836]
[1726453393085,0.12299815,2284.1,2283.7,4.3788]
[1726453393086,2.3663,2284.0,2283.7,4.37871]
[1726453393287,2.3663,2284.0,2283.8,4.37864]
[1726453393490,0.12043831,2283.9,2283.8,4.37864]
[1726453394568,0.12263821,2283.9,2283.8,4.37864]
[1726453394795,0.12263821,2283.9,2283.8,5.254375]
[1726453396492,0.12263821,2283.9,2283.4,6.8344]
[1726453396493,0.12263821,2283.9,2283.5,4.37911]
[1726453396704,0.12263821,2283.9,2283.6,4.92895]
[1726453397287,0.12263821,2283.9,2283.6,9.3079]
[1726453398480,0.12263821,2283.9,2283.7,4.37875]
[1726453398675,0.12263821,2283.9,2283.7,5.30952]
[1726453399200,0.12263821,2283.9,2283.8,4.37866]
[1726453399424,0.12263821,2283.9,2283.7,5.30961]
[1726453400939,2.60593821,2283.9,2283.6,9.3079]
[1726453401231,2.60593821,2283.9,2283.7,4.37885]
[1726453403613,0.12263821,2283.9,2283.7,4.37885]
[1726453403816,0.12263821,2283.9,2283.8,8.75732]
[1726453404007,0.12263821,2283.9,2283.8,11.80632]
[1726453404208,0.12263821,2283.9,2283.7,5.3096]
[1726453404442,0.12263821,2283.9,2283.7,8.75756]
[1726453404596,0.12263821,2283.9,2283.7,4.37874]
[1726453405350,2.43553821,2283.9,2283.7,8.75749]
[1726453405635,2.43553821,2283.9,2283.8,4.37866]
[1726453406910,2.43553821,2283.9,2283.6,0.55]
[1726453407242,2.43553821,2283.9,2283.7,4.37884]
[1726453408236,2.43553821,2283.9,2283.6,0.55]
[1726453408441,2.43553821,2283.9,2283.7,4.37883]
[1726453412354,2.43553821,2283.9,2283.6,4.92887]
[1726453412670,2.43553821,2283.9,2283.6,9.30781]
[1726453414443,2.43553821,2283.9,2283.7,4.37883]
[1726453414642,0.12263821,2283.9,2283.7,4.37883]
[1726453414855,0.12263821,2283.9,2283.8,0.93077]
[1726453415294,0.12263821,2283.9,2283.8,5.30943]
[1726453415456,0.12263821,2283.9,2283.8,10.23809]
[1726453416690,0.12263821,2283.9,2283.8,5.85943]
[1726453416849,0.12263821,2283.9,2283.7,4.37884]
[1726453417054,2.41173821,2283.9,2283.6,4.37895]
[1726453417480,2.41173821,2283.9,2283.3,2.4518]
[1726453417481,0.06803038,2283.8,2283.3,4.37951]
[1726453417650,6.85827859,2283.9,2283.4,4.37933]
[1726453417870,0.12049979,2283.7,2283.4,4.37933]
[1726453418153,2.35933028,2283.9,2283.5,4.37914]
[1726453418352,0.12026274,2283.8,2283.5,4.37914]
[1726453418658,0.12026274,2283.8,2283.5,4.37912]
[1726453418882,0.12246264,2283.8,2283.5,4.9346204]
[1726453419244,0.12246264,2283.8,2283.6,4.379]
[1726453421192,0.12246264,2283.8,2283.5,4.9346204]
[1726453421395,2.2733,2283.5,2283.0,0.91872383]
[1726453421729,2.2733,2283.5,2283.2,4.3798]
[1726453421905,0.12026274,2283.4,2283.2,4.3798]
[1726453422081,0.12026274,2283.4,2283.0,4.38014]
[1726453422082,0.18829312,2283.4,2283.0,8.76015]
[1726453422282,0.18829312,2283.4,2283.0,9.198114]
[1726453422599,0.12026274,2283.4,2283.0,4.818024]
[1726453422755,0.12026274,2283.4,2283.0,9.198114]
[1726453422957,6.66902,2283.2,2282.7,4.38072]
[1726453423270,0.06803038,2283.1,2282.8,4.3805]
[1726453423453,0.12026274,2283.1,2282.8,4.3805]
[1726453423653,0.12026274,2283.1,2282.7,4.38066]
[1726453423924,2.2537,2282.9,2282.5,4.94717029]
[1726453424204,0.06803038,2282.8,2282.5,0.56618029]
[1726453424353,0.12026274,2282.7,2282.5,0.56618029]
[1726453424554,0.06803038,2282.8,2282.5,0.56618029]
[1726453424753,0.12026274,2282.7,2282.5,0.56618029]
[1726453424984,0.06803038,2282.8,2282.5,0.56618029]
[1726453425192,6.76456,2282.6,2282.5,0.56618029]
[1726453425481,6.95189558,2282.6,2282.5,0.56618029]
[1726453426018,11.33285558,2282.6,2282.5,0.56618029]
[1726453426481,18.71381558,2282.6,2282.5,0.56618029]
[1726453427899,14.33285558,2282.6,2282.5,0.56618029]
[1726453429667,6.95189558,2282.6,2282.5,0.56618029]
[1726453430575,2.5029052,2282.6,2282.5,0.56618029]
[1726453431161,6.8838652,2282.6,2282.5,0.56618029]
[1726453431395,11.33285558,2282.6,2282.5,0.56618029]
[1726453431597,14.33285558,2282.6,2282.5,0.56618029]
[1726453431800,4.38148,2282.4,2281.6,4.4181038]
[1726453432007,4.56681863,2282.3,2281.7,4.38255]
[1726453432162,0.06803038,2282.2,2281.7,0.88006538]
[1726453432362,6.79102,2282.1,2281.6,0.0354038]
[1726453432677,0.18513863,2282.0,2281.6,0.0354038]
[1726453433095,0.18513863,2282.0,2281.6,4.4182538]
[1726453433398,0.18513863,2282.0,2281.7,4.38267]
[1726453433614,0.18513863,2282.0,2281.6,4.4182538]
[1726453433896,0.18513863,2282.0,2281.7,4.38269]
[1726453434256,0.11710825,2282.0,2281.7,1.18008638]
[1726453434512,0.11710825,2282.0,2281.8,4.38239]
[1726453434673,0.11710825,2282.0,2281.6,8.8009638]
[1726453435001,0.11710825,2281.9,2281.7,4.38267]
[1726453435214,0.06803038,2282.2,2281.6,1.45956491]
[1726453435505,0.11710825,2282.1,2282.0,9.31408]
[1726453435911,2.2589,2282.6,2282.3,4.38142]
[1726453436063,2.2589,2282.8,2282.3,4.38139]
[1726453436263,0.11700272,2282.5,2282.3,4.38139]
[1726453436461,2.2589,2282.8,2282.5,4.38112]
[1726453437230,2.2589,2282.8,2282.5,4.38106]
[1726453437432,4.83867995,2283.1,2282.5,4.38106]
[1726453437433,2.3173,2283.0,2282.5,4.38106]
[1726453437635,2.3173,2283.0,2282.7,4.38066]
[1726453438222,0.45855995,2283.1,2282.7,4.38066]
[1726453438719,2.56623038,2283.3,2282.7,4.38066]
[1726453438933,6.94586038,2283.3,2282.8,4.38049]
[1726453439639,6.94586038,2283.3,2282.8,4.38056]
[1726453439956,0.06803038,2283.2,2282.8,4.38056]
[1726453440145,0.06803038,2283.2,2282.8,5.500832]
[1726453440461,6.87783,2283.3,2282.8,5.500832]
[1726453440462,6.87783,2283.3,2282.9,4.38038]
[1726453440886,2.4982,2283.3,2282.9,4.38038]
[1726453441368,0.06803038,2283.2,2282.8,1.120272]
[1726453441570,2.4982,2283.3,2282.8,5.500742]
[1726453441781,2.4982,2283.3,2283.0,4.38019]
[1726453442767,6.87784,2283.3,2282.8,4.38039]
[1726453442933,2.4982,2283.3,2282.9,4.38038]
[1726453443134,2.4982,2283.3,2283.0,4.38015]
[1726453443536,2.4982,2283.3,2282.9,4.38027]
[1726453443736,2.4982,2283.3,2282.9,9.3106148]
[1726453444839,2.4982,2283.3,2283.0,4.38017]
[1726453445655,0.45849586,2283.4,2283.1,4.38]
[1726453445981,0.45849586,2283.4,2283.2,4.37981]
[1726453446378,0.11762691,2283.3,2283.1,5.31100148]
[1726453446680,0.11762691,2283.3,2283.1,9.69074148]
[1726453447057,2.40553038,2283.5,2283.1,9.69074148]
[1726453447258,2.40553038,2283.5,2283.2,0.96907415]
[1726453447458,2.40553038,2283.5,2283.1,9.69074148]
[1726453447660,2.40553038,2283.5,2283.1,5.31085148]
[1726453448080,2.3375,2283.5,2283.1,5.31085148]
[1726453448383,2.3375,2283.5,2283.1,4.37982]
[1726453448845,0.06803038,2283.4,2283.1,4.37982]
[1726453450046,2.40553038,2283.5,2283.1,4.37982]
[1726453453386,6.78480038,2283.5,2283.1,4.37982]
[1726453453591,2.40553038,2283.5,2283.1,4.37982]
[1726453453957,2.40553038,2283.5,2282.9,7.2924148]
[1726453454200,4.37952,2283.4,2282.9,4.9303148]
[1726453454362,0.06803038,2283.3,2282.9,4.38026]
[1726453455101,6.71641,2283.2,2282.7,4.38063]
[1726453455396,0.06803038,2283.1,2282.7,4.38063]
[1726453455872,2.40453038,2283.2,2282.8,4.38049]
[1726453456506,2.3365,2283.2,2282.8,4.38049]
[1726453459607,2.3365,2283.2,2282.7,5.361303]
[1726453459608,2.3365,2283.2,2282.9,4.38039]
[1726453459818,2.3365,2283.2,2282.9,5.3545593]
[1726453459978,2.3365,2283.2,2282.9,4.38039]
[1726453461588,0.11859386,2283.1,2282.8,4.38055]
[1726453462274,0.11859386,2283.1,2282.7,4.38065]
[1726453462470,0.11859386,2283.1,2282.8,4.38049]
[1726453465836,0.11859386,2283.1,2282.9,4.38035]
[1726453468912,0.11859386,2283.1,2283.0,11.1644]
[1726453469113,0.11859386,2283.1,2283.0,16.0946]
[1726453469436,9.7054669,2283.6,2283.0,16.0946]
[1726453469437,9.7054669,2283.6,2283.3,4.37943]
[1726453469647,9.7054669,2283.6,2283.4,4.37941]
[1726453469648,2.3376,2283.6,2283.4,4.37941]
[1726453469798,0.4606595,2283.7,2283.4,4.37941]
[1726453470004,0.4606595,2283.7,2283.5,4.37922]
[1726453470724,0.0021999,2283.7,2283.6,8.7581]
[1726453471612,4.3810599,2283.7,2283.2,4.37969]
[1726453471880,4.37936,2283.5,2282.9,4.38026]
[1726453472150,0.06803038,2283.4,2282.9,4.38023]
[1726453473054,0.06803038,2283.4,2283.0,4.38016]
[1726453474173,2.2931,2283.6,2283.2,4.37972]
[1726453474451,6.67224,2283.6,2283.1,8.75978]
[1726453474661,0.06803038,2283.5,2283.1,8.75978]
[1726453474831,2.2931,2283.6,2283.3,4.3795]
[1726453475714,0.0021999,2283.7,2283.4,4.3793]
[1726453475952,0.0021999,2283.7,2283.4,5.09963]
[1726453476159,0.0021999,2283.7,2283.4,4.3793]
[1726453476450,0.11846204,2283.6,2283.4,4.37943]
[1726453476656,0.11846204,2283.6,2283.5,4.37924]
[1726453478444,0.11846204,2283.6,2283.4,4.37932]
[1726453478650,0.11846204,2283.6,2283.5,4.37924]
[1726453479732,0.11846204,2283.6,2283.5,9.634336]
[1726453479939,0.11846204,2283.6,2283.5,9.30848]
[1726453480438,0.11846204,2283.6,2283.5,16.18362]
[1726453480636,0.11846204,2283.6,2283.5,23.14054647]
[1726453481140,0.0021999,2283.7,2283.6,12.3081]
[1726453481336,0.0021999,2283.7,2283.6,14.62215465]
[1726453484982,0.0021999,2283.7,2283.6,10.24310465]
[1726453485185,0.0021999,2283.7,2283.6,7.92905]
[1726453485390,0.12196207,2283.7,2283.6,7.92905]
[1726453485591,0.0021999,2283.7,2283.6,7.92905]
[1726453485894,0.0021999,2283.7,2283.4,4.37933]
[1726453485895,2.3798999,2283.7,2283.4,4.37933]
[1726453486047,2.49966207,2283.7,2283.4,5.255215]
[1726453487693,2.49966207,2283.7,2283.5,4.37923]
[1726453488251,0.12196207,2283.7,2283.5,4.37923]
[1726453488595,0.12196207,2283.7,2283.6,4.92905]
[1726453489709,0.12196207,2283.7,2283.6,9.3081]
[1726453491508,0.12196207,2283.7,2283.6,19.13205]
[1726453491900,0.0021999,2283.7,2283.6,19.13205]
[1726453493518,0.0021999,2283.7,2283.6,23.5111]
[1726453493720,7.3678669,2284.3,2284.2,8.7558]
[1726453493926,0.0376037,2284.4,2284.3,8.7554]
[1726453494806,0.0376037,2284.4,2284.3,15.11922647]
[1726453495010,0.0376037,2284.4,2284.3,20.18114912]
[1726453495248,0.0376037,2284.4,2284.3,16.22422265]
[1726453495463,0.0376037,2284.4,2284.3,13.81732265]
[1726453497347,0.0376037,2284.4,2284.3,8.88962265]
[1726453497555,0.0376037,2284.4,2284.3,4.3777]
[1726453497755,0.0376037,2284.4,2284.3,8.7554]
[1726453498311,0.0376037,2284.4,2284.3,4.3777]
[1726453498507,0.0376037,2284.4,2284.3,8.7554]
[1726453498744,0.0376037,2284.4,2284.3,4.3777]
[1726453499053,0.0376037,2284.4,2284.3,4.97663509]
[1726453499214,2.4396037,2284.4,2284.2,4.37774]
[1726453499555,2.4396037,2284.4,2284.3,4.3777]
[1726453500052,2.4396037,2284.4,2284.2,4.37774]
[1726453500053,2.4396037,2284.4,2284.2,8.75553]
[1726453500419,2.4396037,2284.4,2284.2,8.75551]
[1726453501351,2.4396037,2284.4,2284.0,3.0]
[1726453501352,2.4396037,2284.4,2284.0,11.75624]
[1726453501550,2.4396037,2284.4,2284.0,8.51164865]
[1726453501753,2.4396037,2284.4,2284.1,4.37799]
[1726453502047,2.4396037,2284.4,2284.0,8.75628]
[1726453502576,2.4396037,2284.4,2283.6,4.37898]
[1726453502577,4.37819,2284.1,2283.6,4.37898]
[1726453502861,2.3488,2283.9,2283.6,8.75788]
[1726453503009,2.3488,2283.9,2283.6,0.875788]
[1726453503741,6.72728,2283.9,2283.6,0.875788]
[1726453504517,2.3488,2283.9,2283.6,0.875788]
[1726453506256,2.4791,2284.1,2283.6,0.875788]
[1726453506452,2.4791,2284.1,2283.7,4.7664288]
[1726453506758,2.4791,2284.1,2283.7,0.3875788]
[1726453506759,0.12071914,2284.0,2283.7,0.3875788]
[1726453507433,0.12071914,2284.0,2283.7,4.7663188]
[1726453507641,0.12071914,2284.0,2283.7,9.1450788]
[1726453507846,0.12071914,2284.0,2283.8,1.31020053]
[1726453509168,0.12071914,2284.0,2283.6,4.37894]
[1726453511170,4.49900914,2284.0,2283.5,11.75824]
[1726453511366,8.87742914,2284.0,2283.5,9.17796665]
[1726453511567,8.87742914,2284.0,2283.4,3.0]
[1726453511568,6.76584038,2283.9,2283.4,3.0]
[1726453511890,0.12083328,2283.8,2283.4,7.37942]
[1726453512098,0.12083328,2283.8,2283.6,4.37904]
[1726453512786,0.12083328,2283.8,2283.5,1.175887]
[1726453512957,0.12083328,2283.8,2283.6,4.37902]
[1726453513692,0.12083328,2283.8,2283.5,1.175887]
[1726453513895,0.12083328,2283.8,2283.4,7.37926]
[1726453515926,2.268,2283.7,2283.3,7.37959]
[1726453516088,2.268,2283.7,2283.3,3.0]
[1726453516089,6.71498038,2283.7,2283.3,3.0]
[1726453516427,0.11980612,2283.6,2283.3,3.0]
[1726453516921,0.11980612,2283.5,2283.3,3.0]
[1726453517294,4.37929,2283.5,2283.0,8.33698647]
[1726453517491,4.37929,2283.5,2283.0,5.54467103]
[1726453517492,0.11980612,2283.4,2283.0,5.54467103]
[1726453517820,0.11980612,2283.4,2283.0,9.92477103]
[1726453518001,0.11980612,2283.4,2283.0,5.54467103]
[1726453518737,0.11980612,2283.4,2283.0,5.54474103]
[1726453519019,0.11980612,2283.4,2283.2,4.37979]
[1726453519874,0.11980612,2283.4,2283.1,5.18226321]
[1726453521615,0.11980612,2283.4,2283.0,3.0]
[1726453521918,0.11980612,2283.4,2282.8,3.0]
[1726453521919,2.3501,2283.3,2282.8,3.0]
[1726453522078,6.72978,2283.3,2282.8,4.3804]
[1726453522281,6.79781038,2283.3,2282.8,4.3804]
[1726453522480,4.3801,2283.1,2282.4,7.56010383]
[1726453522720,2.3398,2283.0,2282.6,4.38096]
[1726453523032,2.3398,2283.0,2282.8,4.38057]
[1726453523182,0.11980612,2282.9,2282.8,4.38057]
[1726453523594,2.3398,2283.2,2282.8,4.38057]
[1726453523888,2.3398,2283.2,2282.8,5.37742606]
[1726453524086,0.11980612,2283.1,2282.8,5.37742606]
[1726453525600,0.11980612,2283.1,2282.8,0.99685606]
[1726453525841,4.49981612,2283.1,2282.6,4.38082]
[1726453526386,0.11980612,2283.1,2282.6,8.76168]
[1726453526585,0.11980612,2283.1,2282.6,10.99768165]
[1726453526821,0.11980612,2283.1,2282.7,7.38075]
[1726453527125,0.11980612,2283.1,2282.7,3.0]
[1726453527426,0.11980612,2283.1,2282.7,3.08760585]
[1726453527639,0.11980612,2283.1,2282.8,5.35102475]
[1726453528123,0.11980612,2283.1,2282.8,0.97044475]
[1726453529587,4.49991612,2283.1,2282.7,3.0]
[1726453529813,2.3346,2283.0,2282.5,3.0]
[1726453529997,11.09525,2283.0,2282.5,3.0]
[1726453530196,0.11862899,2282.9,2282.5,3.0]
[1726453530427,0.11862899,2282.9,2282.4,8.76244]
[1726453530632,0.11862899,2282.9,2282.4,5.483205]
[1726453530836,4.49902899,2282.9,2282.4,5.483205]
[1726453531041,4.49902899,2282.9,2282.4,9.864455]
[1726453532044,0.11862899,2282.9,2282.5,4.38115]
[1726453532237,0.11862899,2282.9,2282.7,3.95692647]
[1726453532449,0.11862899,2282.9,2282.8,9.31116]
[1726453532734,2.3637,2283.2,2282.9,4.38022]
[1726453532941,2.3637,2283.2,2283.0,1.23108]